bitfinex-derivatives/quotes_BTCF0:USTF0_20250823
["timestamp","ask_amount","ask_price","bid_price","bid_amount"]
[1755924837254,1.0755268,115930.0,115920.0,0.27484266]
[1755924838456,1.05785447,115930.0,115920.0,0.27484266]
[1755924839056,1.41865447,115930.0,115920.0,0.10474266]
[1755924839255,0.2547545,115920.0,115910.0,0.20700283]
[1755924839451,0.6155545,115920.0,115910.0,0.24111283]
[1755924839760,0.6155545,115920.0,115910.0,0.34563283]
[1755924840759,0.6155545,115920.0,115910.0,0.84563283]
[1755924845959,0.6155545,115920.0,115910.0,0.76828437]
[1755924846158,0.2547545,115920.0,115910.0,0.76828437]
[1755924846564,0.2547545,115920.0,115910.0,0.87643826]
[1755924851057,0.6155545,115920.0,115910.0,0.87643826]
[1755924857463,0.5949045,115920.0,115910.0,0.96274036]
[1755924857766,0.1917345,115920.0,115910.0,1.06274036]
[1755924858669,0.2102845,115920.0,115910.0,1.06274036]
[1755924859368,0.2309345,115920.0,115910.0,1.06274036]
[1755924859564,0.2309345,115920.0,115910.0,0.95458647]
[1755924860068,0.2547545,115920.0,115910.0,0.86828437]
[1755924860269,0.2547545,115920.0,115910.0,1.0230295]
[1755924860873,0.2547545,115920.0,115910.0,0.9230295]
[1755924861767,0.2547545,115920.0,115910.0,0.87677899]
[1755924862158,0.6155545,115920.0,115910.0,0.87677899]
[1755924862469,0.2547545,115920.0,115910.0,0.87677899]
[1755924862669,0.2547545,115920.0,115910.0,0.76828437]
[1755924863062,0.6155545,115920.0,115910.0,0.76828437]
[1755924869766,0.2547545,115920.0,115910.0,0.87677899]
[1755924870368,0.6155545,115920.0,115910.0,0.87677899]
[1755924870564,0.6155545,115920.0,115910.0,0.76828437]
[1755924872276,0.2547545,115920.0,115910.0,0.76828437]
[1755924876086,0.1871545,115920.0,115910.0,0.85458667]
[1755924876378,0.0862945,115920.0,115910.0,1.3813992]
[1755924878380,1.38715874,115930.0,115920.0,0.17783]
[1755924878580,1.38715874,115930.0,115920.0,0.38633203]
[1755924878983,1.38715874,115930.0,115920.0,0.47260214]
[1755924879478,1.38915874,115930.0,115920.0,0.47260214]
[1755924879678,1.02835874,115930.0,115920.0,0.47260214]
[1755924880489,1.02935874,115930.0,115920.0,0.47260214]
[1755924880985,1.05000874,115930.0,115920.0,0.47260214]
[1755924881986,1.07281874,115930.0,115920.0,0.47260214]
[1755924883590,1.43361874,115930.0,115920.0,0.47260214]
[1755924886792,1.07281874,115930.0,115920.0,0.47260214]
[1755924887292,1.43361874,115930.0,115920.0,0.47260214]
[1755924888093,1.07281874,115930.0,115920.0,0.47260214]
[1755924890099,1.43361874,115930.0,115920.0,0.47260214]
[1755924893801,1.43361874,115930.0,115920.0,0.36410011]
[1755924894299,1.43361874,115930.0,115920.0,0.77243785]
[1755924894501,1.84195648,115930.0,115920.0,0.77243785]
[1755924895095,1.84195648,115930.0,115920.0,0.36410011]
[1755924895301,1.84195648,115930.0,115920.0,0.26410011]
[1755924895601,1.84195648,115930.0,115920.0,0.67243785]
[1755924896501,1.84195648,115930.0,115920.0,0.22029011]
[1755924896703,1.84195648,115930.0,115920.0,0.10730011]
[1755924896904,1.84195648,115930.0,115920.0,0.16036011]
[1755924897103,1.84195648,115930.0,115920.0,0.18833011]
[1755924897703,1.43361874,115930.0,115920.0,0.22029011]
[1755924897902,1.84195648,115930.0,115920.0,0.26803011]
[1755924899005,1.84195648,115930.0,115920.0,0.22029011]
[1755924899196,1.84195648,115930.0,115920.0,0.62862785]
[1755924899391,1.84195648,115930.0,115920.0,0.22029011]
[1755924899600,1.84195648,115930.0,115920.0,0.2348667]
[1755924899799,1.84195648,115930.0,115920.0,0.14859659]
[1755924900004,1.84195648,115930.0,115920.0,0.0401]
[1755924900199,1.84195648,115930.0,115920.0,0.01907]
[1755924900405,0.2476251,115920.0,115910.0,0.32608096]
[1755924900598,1.01676284,115920.0,115910.0,0.42608096]
[1755924900995,1.01676284,115920.0,115910.0,0.8344187]
[1755924901200,1.01676284,115920.0,115910.0,0.42608096]
[1755924901399,1.01676284,115920.0,115910.0,1.3344187]
[1755924902108,1.01676284,115920.0,115910.0,1.3821587]
[1755924902308,0.65596284,115920.0,115910.0,1.3821587]
[1755924902507,1.01676284,115920.0,115910.0,1.3821587]
[1755924903309,0.2476251,115920.0,115910.0,1.3821587]
[1755924904403,0.2476251,115920.0,115910.0,0.97382096]
[1755924905016,0.6084251,115920.0,115910.0,0.97382096]
[1755924905308,0.2476251,115920.0,115910.0,0.97382096]
[1755924905912,0.6084251,115920.0,115910.0,0.97382096]
[1755924909414,0.6084251,115920.0,115910.0,0.86532437]
[1755924910105,0.6084251,115920.0,115910.0,1.0200695]
[1755924910517,0.6084251,115920.0,115910.0,0.9200695]
[1755924911212,0.6084251,115920.0,115910.0,0.76532437]
[1755924924313,1.01682418,115920.0,115910.0,1.17372345]
[1755924924515,0.6084251,115920.0,115910.0,0.76532437]
[1755924924716,1.01682418,115920.0,115910.0,0.76532437]
[1755924928120,1.01682418,115920.0,115910.0,0.87375726]
[1755924930829,0.6084251,115920.0,115910.0,0.87375726]
[1755924931031,1.01682418,115920.0,115910.0,0.87375726]
[1755924931730,1.01682418,115920.0,115910.0,1.28215634]
[1755924933332,0.6084251,115920.0,115910.0,1.28215634]
[1755924933534,1.01682418,115920.0,115910.0,1.28215634]
[1755924935736,1.01682418,115920.0,115910.0,0.87375726]
[1755924937127,1.01682418,115920.0,115910.0,1.28215634]
[1755924937533,0.6084251,115920.0,115910.0,1.28215634]
[1755924937837,1.01682418,115920.0,115910.0,1.28215634]
[1755924938037,1.01682418,115920.0,115910.0,1.17372345]
[1755924938633,1.01682418,115920.0,115910.0,1.15479159]
[1755924939539,0.6084251,115920.0,115910.0,1.15479159]
[1755924939837,1.01682418,115920.0,115910.0,1.15479159]
[1755924944538,1.01682418,115920.0,115910.0,0.74639251]
[1755924944743,1.01682418,115920.0,115910.0,1.15479159]
[1755924950038,0.6084251,115920.0,115910.0,1.15479159]
[1755924950646,1.01682418,115920.0,115910.0,1.15479159]
[1755924951041,0.6084251,115920.0,115910.0,1.15479159]
[1755924951435,0.6084251,115920.0,115910.0,0.74639251]
[1755924951640,0.6084251,115920.0,115910.0,1.15479159]
[1755924956748,0.6084251,115920.0,115910.0,0.74639251]
[1755924957047,1.01682418,115920.0,115910.0,1.15479159]
[1755924958051,1.01682418,115920.0,115910.0,0.74639251]
[1755924958353,1.01682418,115920.0,115910.0,1.15479159]
[1755924958950,1.01682418,115920.0,115910.0,0.74530251]
[1755924959252,0.6084251,115920.0,115910.0,0.74530251]
[1755924959454,1.01682418,115920.0,115910.0,0.74530251]
[1755924960947,0.6084251,115920.0,115910.0,0.74530251]
[1755924961251,1.01682418,115920.0,115910.0,0.74530251]
[1755924961849,1.01682418,115920.0,115910.0,1.15370159]
[1755924962953,1.01682418,115920.0,115910.0,0.74530251]
[1755924963153,1.01682418,115920.0,115910.0,1.15370159]
[1755924963354,1.01682418,115920.0,115910.0,0.74530251]
[1755924963857,0.6084251,115920.0,115910.0,0.74530251]
[1755924964057,1.01682418,115920.0,115910.0,0.74530251]
[1755924964856,0.6084251,115920.0,115910.0,0.74530251]
[1755924965058,1.01682418,115920.0,115910.0,0.74530251]
[1755924966047,1.01682418,115920.0,115910.0,1.15370159]
[1755924967455,0.6084251,115920.0,115910.0,1.15370159]
[1755924967849,1.01682418,115920.0,115910.0,1.15370159]
[1755924968652,1.01682418,115920.0,115910.0,0.74530251]
[1755924969249,1.01682418,115920.0,115910.0,1.15370159]
[1755924969649,1.01682418,115920.0,115910.0,0.74530251]
[1755924969850,1.01682418,115920.0,115910.0,1.15370159]
[1755924971557,0.6084251,115920.0,115910.0,1.15370159]
[1755924971757,1.01682418,115920.0,115910.0,1.15370159]
[1755924974555,0.6084251,115920.0,115910.0,1.15370159]
[1755924974754,1.01682418,115920.0,115910.0,1.15370159]
[1755924976164,0.6084251,115920.0,115910.0,1.15370159]
[1755924976367,0.2476251,115920.0,115910.0,1.26216771]
[1755924976660,0.2476251,115920.0,115910.0,1.25370159]
[1755924979660,0.2269751,115920.0,115910.0,1.25370159]
[1755924979860,0.2051651,115920.0,115910.0,1.25370159]
[1755924980362,0.2258151,115920.0,115910.0,1.40844672]
[1755924980562,0.2456851,115920.0,115910.0,1.40844672]
[1755924981158,0.2456851,115920.0,115910.0,1.25370159]
[1755924982263,0.1824751,115920.0,115910.0,1.34000399]
[1755924982566,0.0862951,115920.0,115910.0,1.4262741]
[1755924983564,0.0862951,115920.0,115910.0,1.58101923]
[1755924984065,0.0862951,115920.0,115910.0,1.68946885]
[1755924984563,0.0862951,115920.0,115910.0,1.53472372]
[1755924986060,1.36951497,115930.0,115920.0,0.14791]
[1755924986265,1.36951497,115930.0,115920.0,0.67871908]
[1755924986670,1.36951497,115930.0,115920.0,0.35658266]
[1755924986863,1.39016497,115930.0,115920.0,0.76498174]
[1755924987268,1.39116497,115930.0,115920.0,0.76498174]
[1755924987766,1.39316497,115930.0,115920.0,0.76498174]
[1755924987967,1.39316497,115930.0,115920.0,0.8424281]
[1755924988570,1.41208497,115930.0,115920.0,0.8424281]
[1755924988872,0.09756997,115930.0,115920.0,1.50967602]
[1755924989162,0.01128227,115930.0,115920.0,2.37047602]
[1755924989371,0.01128227,115930.0,115920.0,1.96207694]
[1755924989969,0.01128227,115930.0,115920.0,1.71207694]
[1755924992261,0.09756997,115930.0,115920.0,1.41192083]
[1755924992460,0.09756997,115930.0,115920.0,1.82031991]
[1755924994269,0.01128227,115930.0,115920.0,1.82031991]
[1755924994772,0.01128227,115930.0,115920.0,1.71207694]
[1755924995267,0.916965,115940.0,115930.0,0.2548577]
[1755924995471,0.04141,115950.0,115940.0,0.2548503]
[1755924995671,1.38705775,115960.0,115940.0,1.02425938]
[1755924995872,1.03463828,115960.0,115950.0,0.78512075]
[1755924996476,1.03463828,115960.0,115950.0,0.87138341]
[1755924996671,1.03467828,115960.0,115950.0,0.95765611]
[1755924996872,1.06632828,115960.0,115950.0,0.95765611]
[1755924997175,1.08524828,115960.0,115950.0,0.95765611]
[1755924998069,1.08524828,115960.0,115950.0,1.31845611]
[1755924998269,1.08924828,115960.0,115950.0,1.31845611]
[1755924998775,1.09224828,115960.0,115950.0,1.31845611]
[1755924999375,1.09224828,115960.0,115950.0,1.81845611]
[1755925000169,1.04167828,115960.0,115950.0,1.81845611]
[1755925000371,1.01861828,115960.0,115950.0,1.81845611]
[1755925000866,1.05026828,115960.0,115950.0,1.81845611]
[1755925001277,1.06918828,115960.0,115950.0,1.81845611]
[1755925002182,1.06918828,115960.0,115950.0,1.71030444]
[1755925003077,1.06918828,115960.0,115950.0,1.81845611]
[1755925003675,1.06918828,115960.0,115950.0,1.41005703]
[1755925003884,1.06918828,115960.0,115950.0,1.71030444]
[1755925004578,1.03753828,115960.0,115950.0,1.71030444]
[1755925004779,1.01861828,115960.0,115950.0,1.78738634]
[1755925004977,1.01861828,115960.0,115950.0,1.71030444]
[1755925005981,1.01861828,115960.0,115950.0,1.81845611]
[1755925006686,1.05026828,115960.0,115950.0,1.81845611]
[1755925007088,1.05026828,115960.0,115950.0,1.41005703]
[1755925007384,1.05026828,115960.0,115950.0,1.81845611]
[1755925008191,1.06918828,115960.0,115950.0,1.81845611]
[1755925008886,1.06918828,115960.0,115950.0,1.73218341]
[1755925009487,1.06918828,115960.0,115950.0,1.32378433]
[1755925009989,1.06918828,115960.0,115950.0,1.73218341]
[1755925012078,1.83838736,115960.0,115950.0,0.92134433]
[1755925012289,1.83838736,115960.0,115950.0,1.22159174]
[1755925012584,1.42998828,115960.0,115950.0,1.12159174]
[1755925012989,1.47758736,115960.0,115950.0,1.12159174]
[1755925013192,1.47758736,115960.0,115950.0,1.16323174]
[1755925014188,1.06918828,115960.0,115950.0,1.16323174]
[1755925017590,1.06918828,115960.0,115950.0,1.27138341]
[1755925020285,1.47758736,115960.0,115950.0,1.27138341]
[1755925020878,1.06918828,115960.0,115950.0,1.27138341]
[1755925021183,1.47758736,115960.0,115950.0,1.22974341]
[1755925021792,1.47758736,115960.0,115950.0,1.27247341]
[1755925022093,1.42998828,115960.0,115950.0,1.27247341]
[1755925022291,1.83838736,115960.0,115950.0,1.27247341]
[1755925023583,1.47758736,115960.0,115950.0,1.27247341]
[1755925023892,1.06918828,115960.0,115950.0,1.27247341]
[1755925024190,1.06918828,115960.0,115950.0,0.86407433]
[1755925024389,1.06918828,115960.0,115950.0,1.27247341]
[1755925024793,1.06918828,115960.0,115950.0,1.16432174]
[1755925025492,1.06718828,115960.0,115950.0,1.16432174]
[1755925025894,1.06718828,115960.0,115950.0,1.26432174]
[1755925026793,1.06418828,115960.0,115950.0,1.26432174]
[1755925027789,1.06318828,115960.0,115950.0,1.26432174]
[1755925027993,1.06418828,115960.0,115950.0,1.26432174]
[1755925030889,1.06418828,115960.0,115950.0,1.62512174]
[1755925033488,1.06418828,115960.0,115950.0,1.26432174]
[1755925033795,1.06418828,115960.0,115950.0,1.62512174]
[1755925033992,1.06418828,115960.0,115950.0,1.73345337]
[1755925034397,1.06418828,115960.0,115950.0,1.37265337]
[1755925034898,1.06418828,115960.0,115950.0,1.45003402]
[1755925035097,1.06418828,115960.0,115950.0,1.34170239]
[1755925037297,1.06418828,115960.0,115950.0,0.93330331]
[1755925037496,1.06418828,115960.0,115950.0,1.34170239]
[1755925037999,1.06418828,115960.0,115950.0,0.93330331]
[1755925038394,1.06418828,115960.0,115950.0,1.34170239]
[1755925042396,1.06418828,115960.0,115950.0,1.26432174]
[1755925042603,1.06418828,115960.0,115950.0,0.85592266]
[1755925042802,1.06418828,115960.0,115950.0,1.26432174]
[1755925050809,1.06418828,115960.0,115950.0,0.85592266]
[1755925051011,1.06418828,115960.0,115950.0,1.26432174]
[1755925051611,1.06418828,115960.0,115950.0,0.85592266]
[1755925051804,1.06418828,115960.0,115950.0,1.26432174]
[1755925052908,1.06418828,115960.0,115950.0,1.16432174]
[1755925055813,1.06418828,115960.0,115950.0,1.24174477]
[1755925056813,1.42498828,115960.0,115950.0,1.24174477]
[1755925057717,1.83338736,115960.0,115950.0,1.24174477]
[1755925057918,1.42498828,115960.0,115950.0,1.24174477]
[1755925058114,1.83338736,115960.0,115950.0,1.24174477]
[1755925058617,1.47258736,115960.0,115950.0,1.24174477]
[1755925059218,1.83338736,115960.0,115950.0,1.24174477]
[1755925059420,1.83338736,115960.0,115950.0,0.83334569]
[1755925059620,1.83338736,115960.0,115950.0,1.24174477]
[1755925059819,1.47258736,115960.0,115950.0,1.24174477]
[1755925060017,1.83338736,115960.0,115950.0,1.24174477]
[1755925061621,1.47258736,115960.0,115950.0,1.24174477]
[1755925062122,1.06418828,115960.0,115950.0,1.24174477]
[1755925062320,1.47258736,115960.0,115950.0,1.24174477]
[1755925062621,1.83338736,115960.0,115950.0,1.24174477]
[1755925062821,1.47258736,115960.0,115950.0,1.24174477]
[1755925063017,1.06418828,115960.0,115950.0,1.24174477]
[1755925063221,1.06418828,115960.0,115950.0,1.16432174]
[1755925067732,1.06418828,115960.0,115950.0,1.27272207]
[1755925070034,1.06418828,115960.0,115950.0,0.86432299]
[1755925070330,1.06418828,115960.0,115950.0,1.27272207]
[1755925070536,1.06418828,115960.0,115950.0,0.75592266]
[1755925070726,1.06418828,115960.0,115950.0,1.16432174]
[1755925071121,1.06418828,115960.0,115950.0,0.75592266]
[1755925071321,1.06418828,115960.0,115950.0,1.16432174]
[1755925071622,1.42498828,115960.0,115950.0,1.16432174]
[1755925071823,1.42498828,115960.0,115950.0,1.27273214]
[1755925072123,1.42498828,115960.0,115950.0,1.16432174]
[1755925073132,1.06418828,115960.0,115950.0,1.16432174]
[1755925073928,1.06418828,115960.0,115950.0,0.75592266]
[1755925074128,1.06418828,115960.0,115950.0,1.16432174]
[1755925074723,1.42498828,115960.0,115950.0,1.16432174]
[1755925075125,1.42498828,115960.0,115950.0,1.27273157]
[1755925075532,1.83338736,115960.0,115950.0,1.27273157]
[1755925075934,1.83338736,115960.0,115950.0,1.16432174]
[1755925076418,1.06418828,115960.0,115950.0,1.16432174]
[1755925076622,1.47258736,115960.0,115950.0,1.16432174]
[1755925077532,1.83338736,115960.0,115950.0,1.16432174]
[1755925078332,1.47258736,115960.0,115950.0,1.16432174]
[1755925079936,1.83338736,115960.0,115950.0,0.75592266]
[1755925080324,1.42498828,115960.0,115950.0,1.16432174]
[1755925080935,1.83338736,115960.0,115950.0,1.13084174]
[1755925081139,1.83338736,115960.0,115950.0,1.16348174]
[1755925083144,1.42498828,115960.0,115950.0,1.16348174]
[1755925083332,1.83338736,115960.0,115950.0,1.16348174]
[1755925084338,1.83338736,115960.0,115950.0,1.08811174]
[1755925084539,1.83338736,115960.0,115950.0,1.12075174]
[1755925085234,1.83338736,115960.0,115950.0,1.16165174]
[1755925086843,1.83338736,115960.0,115950.0,1.27007023]
[1755925087833,1.83338736,115960.0,115950.0,0.75839115]
[1755925088037,1.42498828,115960.0,115950.0,0.70726286]
[1755925088237,1.83338736,115960.0,115950.0,0.59884437]
[1755925088427,1.83338736,115960.0,115950.0,0.61516437]
[1755925089039,1.83338736,115960.0,115950.0,0.64612849]
[1755925089939,1.83338736,115960.0,115950.0,0.14612849]
[1755925090238,1.83338736,115960.0,115950.0,0.10841849]
[1755925090742,0.2406629,115950.0,115940.0,0.28981205]
[1755925091037,1.00986198,115950.0,115940.0,0.69821113]
[1755925091240,1.00986198,115950.0,115940.0,0.28981205]
[1755925091833,1.25986198,115950.0,115940.0,0.10841849]
[1755925092233,1.25986198,115950.0,115940.0,0.07739365]
[1755925095032,0.1530204,115940.0,115930.0,0.09668172]
[1755925095230,1.83574948,115940.0,115930.0,0.09668172]
[1755925096041,1.83574948,115940.0,115930.0,0.11858172]
[1755925096536,1.83574948,115940.0,115930.0,0.61858172]
[1755925096745,1.83574948,115940.0,115930.0,0.63490172]
[1755925097244,1.83574948,115940.0,115930.0,0.63590172]
[1755925097947,1.4273504,115940.0,115930.0,0.63590172]
[1755925098147,1.83574948,115940.0,115930.0,0.63790172]
[1755925099747,1.83574948,115940.0,115930.0,0.67054172]
[1755925099941,1.83574948,115940.0,115930.0,0.59314807]
[1755925100137,0.5695404,115940.0,115930.0,1.09316715]
[1755925100340,0.1257704,115940.0,115930.0,1.52942237]
[1755925100546,0.9512904,115940.0,115930.0,1.63784086]
[1755925101140,1.0009504,115940.0,115930.0,1.63784086]
[1755925101346,1.0009504,115940.0,115930.0,1.72412866]
[1755925102447,1.0328804,115940.0,115930.0,1.72412866]
[1755925104447,1.0009504,115940.0,115930.0,1.72412866]
[1755925107049,1.0009504,115940.0,115930.0,1.61571017]
[1755925107354,1.0328804,115940.0,115930.0,1.61571017]
[1755925107657,1.0009504,115940.0,115930.0,1.61571017]
[1755925107854,1.0328804,115940.0,115930.0,1.61571017]
[1755925108458,1.0009504,115940.0,115930.0,1.61571017]
[1755925109155,1.0009504,115940.0,115930.0,1.20731109]
[1755925109358,1.0009504,115940.0,115930.0,1.61571017]
[1755925109955,1.0009504,115940.0,115930.0,1.36571017]
[1755925110357,1.0009504,115940.0,115930.0,1.47412866]
[1755925110656,1.0009504,115940.0,115930.0,1.44298985]
[1755925111356,1.0328804,115940.0,115930.0,1.44298985]
[1755925112159,1.0328804,115940.0,115930.0,1.36571017]
[1755925112358,1.0328804,115940.0,115930.0,1.47412866]
[1755925113851,1.0009504,115940.0,115930.0,1.47412866]
[1755925115154,1.0328804,115940.0,115930.0,1.47412866]
[1755925116259,1.0328804,115940.0,115930.0,1.47423314]
[1755925116859,0.91467,115940.0,115930.0,1.36581465]
[1755925117060,1.0009507,115940.0,115930.0,1.36581465]
[1755925118155,0.9792907,115940.0,115930.0,1.36581465]
[1755925118963,1.0017607,115940.0,115930.0,1.36581465]
[1755925119463,0.91548,115940.0,115930.0,1.83496828]
[1755925119657,0.91548,115940.0,115930.0,1.72661465]
[1755925119857,0.94741,115940.0,115930.0,1.72661465]
[1755925120568,1.0336907,115940.0,115930.0,1.72661465]
[1755925122068,1.0490407,115940.0,115930.0,1.83498231]
[1755925122365,1.0336907,115940.0,115930.0,1.83498231]
[1755925122869,1.0336907,115940.0,115930.0,1.93498231]
[1755925123757,1.0336907,115940.0,115930.0,1.52658323]
[1755925124065,1.0336907,115940.0,115930.0,1.93498231]
[1755925124568,1.0017607,115940.0,115930.0,1.93498231]
[1755925124968,1.0336907,115940.0,115930.0,1.93498231]
[1755925125563,1.0336907,115940.0,115930.0,1.82661465]
[1755925125764,1.0490407,115940.0,115930.0,1.82661465]
[1755925125965,1.0490407,115940.0,115930.0,1.41821557]
[1755925126265,1.0490407,115940.0,115930.0,1.82661465]
[1755925127262,1.0490407,115940.0,115930.0,1.41821557]
[1755925127459,1.0490407,115940.0,115930.0,1.82661465]
[1755925130769,1.0017607,115940.0,115930.0,1.82661465]
[1755925130971,0.91548,115940.0,115930.0,2.64997465]
[1755925131372,0.91548,115940.0,115930.0,2.75838503]
[1755925131668,1.0297178,115950.0,115940.0,0.2505707]
[1755925131871,1.0616478,115950.0,115940.0,0.75896978]
[1755925132171,1.0616478,115950.0,115940.0,0.86738016]
[1755925132374,1.0616478,115950.0,115940.0,1.31443538]
[1755925133364,1.0616478,115950.0,115940.0,1.81443538]
[1755925133671,1.0616432,115950.0,115940.0,1.706025]
[1755925134165,1.0297132,115950.0,115940.0,1.706025]
[1755925134371,1.0143632,115950.0,115940.0,1.707025]
[1755925134571,1.0462932,115950.0,115940.0,1.707025]
[1755925134875,1.0616432,115950.0,115940.0,1.707025]
[1755925135469,1.0616432,115950.0,115940.0,1.709025]
[1755925135675,1.0616432,115950.0,115940.0,1.86377013]
[1755925135971,1.0616432,115950.0,115940.0,1.41668943]
[1755925136177,1.4224432,115950.0,115940.0,1.41668943]
[1755925136377,1.0616432,115950.0,115940.0,1.2619443]
[1755925136972,1.0616432,115950.0,115940.0,1.3482251]
[1755925137276,1.0616432,115950.0,115940.0,1.50297023]
[1755925138174,1.0616432,115950.0,115940.0,1.3482251]
[1755925139277,1.0616432,115950.0,115940.0,1.2619443]
[1755925140179,1.83084228,115950.0,115940.0,0.85354522]
[1755925140380,1.83084228,115950.0,115940.0,0.77944522]
[1755925140577,2.08084228,115950.0,115940.0,0.54166]
[1755925140879,2.08084228,115950.0,115940.0,0.64997111]
[1755925141779,1.72004228,115950.0,115940.0,1.14107019]
[1755925141971,1.3116432,115950.0,115940.0,1.07385908]
[1755925142979,1.3116432,115950.0,115940.0,1.18216268]
[1755925143281,1.72004228,115950.0,115940.0,1.18216268]
[1755925145478,1.3116432,115950.0,115940.0,1.18216268]
[1755925149185,1.3116432,115950.0,115940.0,0.7737636]
[1755925149385,1.3116432,115950.0,115940.0,1.18216268]
[1755925151383,1.72004228,115950.0,115940.0,1.18216268]
[1755925151984,1.72004228,115950.0,115940.0,0.7737636]
[1755925152183,1.72004228,115950.0,115940.0,1.18216268]
[1755925152385,1.3116432,115950.0,115940.0,1.18216268]
[1755925152585,1.72004228,115950.0,115940.0,1.18216268]
[1755925152985,1.3116432,115950.0,115940.0,1.18216268]
[1755925153185,1.72004228,115950.0,115940.0,1.18216268]
[1755925154283,1.3116432,115950.0,115940.0,1.07385908]
[1755925157183,1.72004228,115950.0,115940.0,1.07385908]
[1755925157392,1.72004228,115950.0,115940.0,0.82020513]
[1755925157705,1.72004228,115950.0,115940.0,1.31488531]
[1755925157992,1.72004228,115950.0,115940.0,1.67568531]
[1755925158184,1.72004228,115950.0,115940.0,1.26728623]
[1755925158384,1.72004228,115950.0,115940.0,0.90648623]
[1755925158585,1.72004228,115950.0,115940.0,1.31488531]
[1755925159098,1.3116432,115950.0,115940.0,1.31488531]
[1755925159390,1.72004228,115950.0,115940.0,1.31488531]
[1755925159989,1.3116432,115950.0,115940.0,1.31488531]
[1755925160290,1.72004228,115950.0,115940.0,1.31488531]
[1755925161190,1.3116432,115950.0,115940.0,1.31488531]
[1755925161383,1.72004228,115950.0,115940.0,1.31488531]
[1755925162889,1.72004228,115950.0,115940.0,1.67568531]
[1755925163091,1.72004228,115950.0,115940.0,1.31488531]
[1755925163283,1.72004228,115950.0,115940.0,1.67568531]
[1755925163802,1.72004228,115950.0,115940.0,1.62094018]
[1755925164185,1.72004228,115950.0,115940.0,1.26014018]
[1755925164388,0.94344,115950.0,115940.0,1.2125411]
[1755925164688,0.97537,115950.0,115940.0,1.70718796]
[1755925165185,0.97537,115950.0,115940.0,1.29878888]
[1755925165590,0.97537,115950.0,115940.0,1.70718796]
[1755925167790,0.94344,115950.0,115940.0,1.70718796]
[1755925167988,0.94344,115950.0,115940.0,1.81561394]
[1755925167989,0.92809,115950.0,115940.0,1.81561394]
[1755925168890,0.95977,115950.0,115940.0,1.81561394]
[1755925169300,0.95977,115950.0,115940.0,1.70718796]
[1755925171095,0.79666466,115950.0,115940.0,1.86193309]
[1755925171291,0.76498466,115950.0,115940.0,2.11193309]
[1755925171595,0.76498466,115950.0,115940.0,2.93237309]
[1755925172195,0.76498466,115950.0,115940.0,2.52397401]
[1755925172395,0.76498466,115950.0,115940.0,2.93237309]
[1755925173097,0.78012466,115950.0,115940.0,2.93237309]
[1755925173295,0.78958466,115950.0,115940.0,2.93237309]
[1755925173488,0.0246,115950.0,115940.0,2.93237309]
[1755925174391,0.01514,115950.0,115940.0,2.93237309]
[1755925175296,0.97872283,115960.0,115950.0,0.26937766]
[1755925175496,0.97872283,115960.0,115950.0,1.13458674]
[1755925175697,0.97872283,115960.0,115950.0,1.24295268]
[1755925176097,0.89245053,115960.0,115950.0,1.32920046]
[1755925176493,0.89245053,115960.0,115950.0,0.96840046]
[1755925176696,0.89245053,115960.0,115950.0,1.32920046]
[1755925177099,0.97871693,115960.0,115950.0,1.32920046]
[1755925177599,0.97871693,115960.0,115950.0,1.79822977]
[1755925178001,0.97871693,115960.0,115950.0,1.38983069]
[1755925178200,0.97871693,115960.0,115950.0,1.79822977]
[1755925179203,0.97871693,115960.0,115950.0,1.72083452]
[1755925184401,0.97871693,115960.0,115950.0,1.31243544]
[1755925184589,0.97871693,115960.0,115950.0,1.36003452]
[1755925184794,0.97871693,115960.0,115950.0,1.72083452]
[1755925189600,0.97871693,115960.0,115950.0,1.36003452]
[1755925191308,0.97871693,115960.0,115950.0,1.34068066]
[1755925191809,0.97871693,115960.0,115950.0,0.93228158]
[1755925192011,0.97871693,115960.0,115950.0,1.34068066]
[1755925192908,0.97871693,115960.0,115950.0,1.70148066]
[1755925195110,0.89245053,115960.0,115950.0,1.70148066]
[1755925195611,0.89245053,115960.0,115950.0,1.29308158]
[1755925195811,0.89245053,115960.0,115950.0,1.70148066]
[1755925196105,0.97871663,115960.0,115950.0,1.70148066]
[1755925198612,0.97871663,115960.0,115950.0,1.29308158]
[1755925198800,0.97871663,115960.0,115950.0,1.70148066]
[1755925199001,0.97871663,115960.0,115950.0,1.34068066]
[1755925199310,0.97871663,115960.0,115950.0,1.70148066]
[1755925200810,0.86936053,115960.0,115950.0,1.70148066]
[1755925201013,0.82878053,115960.0,115950.0,1.80985747]
[1755925201913,0.82878053,115960.0,115950.0,1.40145839]
[1755925202111,0.82878053,115960.0,115950.0,1.80985747]
[1755925202512,0.84392053,115960.0,115950.0,1.80985747]
[1755925202718,0.85338053,115960.0,115950.0,1.80985747]
[1755925203816,0.85338053,115960.0,115950.0,1.70148066]
[1755925204814,0.85338053,115960.0,115950.0,1.85622579]
[1755925205212,0.84392053,115960.0,115950.0,1.44782671]
[1755925205517,0.85338053,115960.0,115950.0,1.85622579]
[1755925206106,0.87930053,115960.0,115950.0,1.85622579]
[1755925206310,0.96556743,115960.0,115950.0,1.85622579]
[1755925206715,0.96556743,115960.0,115950.0,1.44782671]
[1755925206912,0.96556743,115960.0,115950.0,1.85622579]
[1755925207319,0.96556743,115960.0,115950.0,1.44782671]
[1755925207513,0.96556743,115960.0,115950.0,1.85622579]
[1755925207823,0.96556743,115960.0,115950.0,1.44782671]
[1755925208120,0.96556743,115960.0,115950.0,1.85622579]
[1755925210524,0.96556743,115960.0,115950.0,1.44782671]
[1755925210714,0.96556743,115960.0,115950.0,1.85622579]
[1755925211215,0.96556743,115960.0,115950.0,1.44782671]
[1755925211423,0.96556743,115960.0,115950.0,1.70148066]
[1755925213023,0.96556743,115960.0,115950.0,1.85622579]
[1755925213926,0.96556743,115960.0,115950.0,1.76995199]
[1755925214229,0.96556743,115960.0,115950.0,1.40915199]
[1755925215417,0.96556743,115960.0,115950.0,1.25440686]
[1755925216726,1.77056651,115960.0,115950.0,0.84600778]
[1755925216924,1.40976651,115960.0,115950.0,1.15440686]
[1755925217118,1.77056651,115960.0,115950.0,1.15440686]
[1755925218924,1.40976651,115960.0,115950.0,1.15440686]
[1755925219127,1.77056651,115960.0,115950.0,1.15440686]
[1755925219332,1.36216743,115960.0,115950.0,1.15440686]
[1755925219625,1.00136743,115960.0,115950.0,0.74600778]
[1755925219825,1.36216743,115960.0,115950.0,1.26275803]
[1755925220015,1.00136743,115960.0,115950.0,0.85435895]
[1755925220216,1.00136743,115960.0,115950.0,1.26275803]
[1755925220420,1.36216743,115960.0,115950.0,1.26275803]
[1755925220820,1.00136743,115960.0,115950.0,1.26275803]
[1755925221015,1.00136743,115960.0,115950.0,0.85435895]
[1755925221016,1.36216743,115960.0,115950.0,0.85435895]
[1755925221326,1.40976651,115960.0,115950.0,1.26275803]
[1755925222024,1.40976651,115960.0,115950.0,0.85435895]
[1755925222225,1.77056651,115960.0,115950.0,1.26275803]
[1755925222422,1.36216743,115960.0,115950.0,0.85435895]
[1755925222619,1.36216743,115960.0,115950.0,1.26275803]
[1755925223014,1.36216743,115960.0,115950.0,0.85435895]
[1755925223218,1.36216743,115960.0,115950.0,1.26275803]
[1755925223527,1.36216743,115960.0,115950.0,0.85435895]